fUSD/lending_fUSD_20240804
["ID","MTS","AMOUNT","RATE_DAILY","PERIOD"]
[334164771,1722805880166,-500.0,0.00023178,9]
[334164772,1722805880176,-799.08,0.00023178,9]
[334164773,1722805880185,-1250.85,0.00023178,9]
[334164774,1722805880195,-500.0,0.00023178,9]
[334164775,1722805880205,-500.0,0.00023178,9]
[334164776,1722805880215,-500.0,0.00023178,9]
[334164777,1722805880224,-500.0,0.00023178,9]
[334164778,1722805880234,-500.0,0.00023178,9]
[334164779,1722805880244,-500.0,0.00023178,9]
[334164780,1722805880254,-500.0,0.00023178,9]
[334164781,1722805880263,-500.0,0.00023178,9]
[334164782,1722805880273,-711.47,0.00023178,9]
[334164783,1722805880283,-500.0,0.00023178,9]
[334164784,1722805880293,-554.17,0.00023178,9]
[334164785,1722805880302,-500.0,0.00023178,9]
[334164786,1722805880312,-500.0,0.00023178,9]
[334164787,1722805880321,-500.0,0.00023178,9]
[334164788,1722805880330,-1125.3,0.00023178,9]
[334164789,1722805880339,-977.26,0.00023178,9]
[334164790,1722805880348,-615.32,0.00023178,9]
[334164791,1722805880357,-500.0,0.00023178,9]
[334164792,1722805880369,-500.0,0.00023178,9]
[334164793,1722805880379,-500.0,0.00023178,9]
[334164794,1722805880389,-650.86,0.00023178,9]
[334164795,1722805880399,-500.0,0.00023178,9]
[334164796,1722805880409,-552.74,0.00023178,9]
[334164797,1722805880418,-500.0,0.00023178,9]
[334164798,1722805880428,-598.03,0.00023178,9]
[334164799,1722805880438,-500.0,0.00023178,9]
[334164800,1722805880448,-596.88370715,0.00023178,9]
[334164801,1722805880458,-500.0,0.00023178,9]
[334164802,1722805880468,-500.0,0.00023178,9]
[334164803,1722805880478,-766.92,0.00023178,9]
[334164804,1722805880487,-1029.2,0.00023178,9]
[334164805,1722805880497,-254.6754099,0.00023178,9]
[334164806,1722805880507,-500.0,0.00023178,9]
[334164807,1722805880516,-500.0,0.00023178,9]
[334164808,1722805880526,-500.0,0.00023178,9]
[334164809,1722805880535,-1070.84,0.00023178,9]
[334164810,1722805880544,-500.0,0.00023178,9]
[334164811,1722805880554,-500.0,0.00023178,9]
[334164812,1722805880564,-1025.12,0.00023178,9]
[334164813,1722805880579,-500.0,0.00023178,9]
[334164814,1722805880589,-500.0,0.00023178,9]
[334164815,1722805880599,-500.0,0.00023178,9]
[334164816,1722805880612,-1123.65,0.00023178,9]
[334164817,1722805880623,-935.9,0.00023178,9]
[334164818,1722805880633,-500.0,0.00023178,9]
[334164819,1722805880643,-500.0,0.00023178,9]
[334164820,1722805880652,-503.18,0.00023178,9]
[334164821,1722805880662,-967.76,0.00023178,9]
[334164822,1722805880671,-683.02,0.00023178,9]
[334164823,1722805880680,-500.0,0.00023178,9]
[334164824,1722805880690,-989.88,0.00023178,9]
[334164825,1722805880699,-500.0,0.00023178,9]
[334164826,1722805880709,-500.0,0.00023178,9]
[334164827,1722805880718,-500.0,0.00023178,9]
[334164828,1722805880728,-500.0,0.00023178,9]
[334164829,1722805880738,-500.0,0.00023178,9]
[334164830,1722805880748,-785.29,0.00023178,9]
[334164831,1722805880757,-665.55,0.00023178,9]
[334164832,1722805880767,-1317.39,0.00023178,9]
[334164833,1722805880777,-707.71,0.00023178,9]
[334164834,1722805880786,-500.0,0.00023178,9]
[334164835,1722805880796,-500.0,0.00023178,9]
[334164836,1722805880805,-500.0,0.00023178,9]
[334164837,1722805880815,-609.26,0.00023178,9]
[334164838,1722805880824,-1079.16,0.00023178,9]
[334164839,1722805880833,-615.98,0.00023178,9]
[334164840,1722805880843,-500.0,0.00023178,9]
[334164841,1722805880852,-500.0,0.00023178,9]
[334164842,1722805880862,-500.0,0.00023178,9]
[334164843,1722805880875,-791.87,0.00023178,9]
[334164844,1722805880885,-1134.62,0.00023178,9]
[334164845,1722805880895,-500.0,0.00023178,9]
[334164846,1722805880904,-500.0,0.00023178,9]
[334164847,1722805880914,-500.0,0.00023178,9]
[334164848,1722805880924,-500.0,0.00023178,9]
[334164849,1722805880934,-500.0,0.00023178,9]
[334164850,1722805880944,-500.0,0.00023178,9]
[334164851,1722805880953,-500.0,0.00023178,9]
[334164852,1722805880962,-684.59,0.00023178,9]
[334164853,1722805880972,-500.0,0.00023178,9]
[334164854,1722805880981,-500.0,0.00023178,9]
[334164855,1722805880991,-500.0,0.00023178,9]
[334164856,1722805881001,-807.51,0.00023178,9]
[334164857,1722805881011,-1911.59,0.00023178,9]
[334164858,1722805881020,-500.0,0.00023178,9]
[334164859,1722805881029,-500.0,0.00023178,9]
[334164860,1722805881039,-500.0,0.00023178,9]
[334164861,1722805881048,-500.0,0.00023178,9]
[334164862,1722805881058,-500.0,0.00023178,9]
[334164863,1722805881068,-500.0,0.00023178,9]
[334164864,1722805881078,-767.21,0.00023178,9]
[334164865,1722805881087,-3835.47,0.00023178,9]
[334164866,1722805881097,-500.0,0.00023178,9]
[334164867,1722805881106,-696.93,0.00023178,9]
[334164868,1722805881118,-1057.28,0.00023178,9]
[334164869,1722805881127,-948.14,0.00023178,9]
[334164870,1722805881137,-970.01,0.00023178,9]
[334164871,1722805881146,-500.0,0.00023178,9]
[334164872,1722805881155,-1408.64,0.00023178,9]
[334164873,1722805881165,-1514.72,0.00023178,9]
[334164874,1722805881175,-901.07,0.00023178,9]
[334164875,1722805881185,-500.0,0.00023178,9]
[334164876,1722805881195,-500.0,0.00023178,9]
[334164877,1722805881205,-500.0,0.00023178,9]
[334164878,1722805881215,-500.0,0.00023178,9]
[334164879,1722805881225,-1322.2,0.00023178,9]
[334164880,1722805881235,-523.43,0.00023178,9]
[334164881,1722805881244,-500.0,0.00023178,9]
[334164882,1722805881254,-792.65,0.00023178,9]
[334164883,1722805881264,-1221.82,0.00023178,9]
[334164884,1722805881274,-1697.88,0.00023178,9]
[334164885,1722805881283,-500.0,0.00023178,9]
[334164886,1722805881293,-500.0,0.00023178,9]
[334164887,1722805881303,-500.0,0.00023178,9]
[334164888,1722805881312,-728.07,0.00023178,9]
[334164889,1722805881321,-500.0,0.00023178,9]
[334164890,1722805881330,-1039.84,0.00023178,9]
[334164891,1722805881340,-500.0,0.00023178,9]
[334164892,1722805881349,-1478.14,0.00023178,9]
[334164893,1722805881359,-839.23,0.00023178,9]
[334164894,1722805881369,-1348.33,0.00023178,9]
[334164895,1722805881379,-500.0,0.00023178,9]
[334164896,1722805881388,-500.0,0.00023178,9]
[334164897,1722805881398,-991.75,0.00023178,9]
[334164898,1722805881407,-500.0,0.00023178,9]
[334164899,1722805881417,-500.0,0.00023178,9]
[334164900,1722805881427,-500.0,0.00023178,9]
[334164901,1722805881437,-1264.59,0.00023178,9]
[334164902,1722805881448,-500.0,0.00023178,9]
[334164903,1722805881457,-2848.3,0.00023178,9]
[334164904,1722805881467,-1705.54,0.00023178,9]
[334164905,1722805881476,-500.0,0.00023178,9]
[334164906,1722805881486,-500.0,0.00023178,9]
[334164907,1722805881495,-2193.06,0.00023178,9]
[334164908,1722805881504,-2998.86,0.00023178,9]
[334164909,1722805881514,-175.59157254,0.00023178,9]
[334164910,1722805881523,-10229.78,0.00023178,9]
[334164911,1722805881534,-844.23,0.00023178,9]
[334164912,1722805881543,-666.35,0.00023178,9]
[334164913,1722805881553,-2996.4,0.00023178,9]
[334164914,1722805881563,-500.0,0.00023178,9]
[334164915,1722805881573,-500.0,0.00023178,9]
[334164916,1722805881587,-500.0,0.00023178,9]
[334164917,1722805881597,-963.29,0.00023178,9]
[334164918,1722805881607,-1351.1,0.00023178,9]
[334164919,1722805881617,-500.0,0.00023178,9]
[334164920,1722805881626,-1069.8,0.00023178,9]
[334164921,1722805881636,-4507.33,0.00023178,9]
[334164922,1722805881833,-500.0,0.00023178,9]
[334164923,1722805881843,-1472.08,0.00023178,9]
[334164924,1722805881853,-2672.79,0.00023178,9]
[334164925,1722805881863,-2076.15,0.00023178,9]
[334164926,1722805881876,-2525.21,0.00023178,9]
[334164927,1722805881886,-1167.47,0.00023178,9]
[334164928,1722805881896,-1412.6,0.00023178,9]
[334164929,1722805881906,-500.0,0.00023178,9]
[334164930,1722805881915,-500.0,0.00023178,9]
[334164931,1722805881927,-500.0,0.00023178,9]
[334164932,1722805881937,-1229.02,0.00023178,9]
[334164933,1722805881947,-500.0,0.00023178,9]
[334164934,1722805881957,-531.61,0.00023178,9]
[334164935,1722805881967,-500.0,0.00023178,9]
[334164936,1722805881976,-500.0,0.00023178,9]
[334164937,1722805881986,-6553.66,0.00023178,9]
[334164938,1722805881996,-500.0,0.00023178,9]
[334164939,1722805882005,-500.0,0.00023178,9]
[334164940,1722805882014,-500.0,0.00023178,9]
[334164941,1722805882023,-500.0,0.00023178,9]
[334164942,1722805882032,-691.94,0.00023178,9]
[334164943,1722805882042,-500.0,0.00023178,9]
[334164944,1722805882051,-500.0,0.00023178,9]
[334164945,1722805882060,-2309.07,0.00023178,9]
[334164946,1722805882070,-500.0,0.00023178,9]
[334164947,1722805882079,-500.0,0.00023178,9]
[334164948,1722805882088,-500.0,0.00023178,9]
[334164949,1722805882098,-500.0,0.00023178,9]
[334164950,1722805882107,-500.0,0.00023178,9]
[334164951,1722805882119,-500.0,0.00023178,9]
[334164952,1722805882128,-500.0,0.00023178,9]
[334164953,1722805882137,-7369.62,0.00023178,9]
[334164954,1722805882147,-1541.38,0.00023178,9]
[334164955,1722805882157,-1634.36,0.00023178,9]
[334164956,1722805882166,-500.0,0.00023178,9]
[334164957,1722805882176,-1725.22,0.00023178,9]
[334164958,1722805882185,-208.83063331,0.00023178,9]
[334164959,1722805882194,-4003.4,0.00023178,9]
[334164960,1722805882204,-500.0,0.00023178,9]
[334164961,1722805882213,-29096.91,0.00023178,9]
[334164962,1722805882223,-561.51991756,0.00023178,9]
[334164963,1722805882232,-500.0,0.00023178,9]
[334164964,1722805882242,-1389.65,0.00023178,9]
[334164965,1722805882251,-500.0,0.00023178,9]
[334164966,1722805882260,-500.0,0.00023178,9]
[334164967,1722805882270,-342.82387437,0.00023178,9]
[334164968,1722805882280,-500.0,0.00023178,9]
[334164969,1722805882290,-500.0,0.00023178,9]
[334164970,1722805882299,-1445.15,0.00023178,9]
[334164971,1722805882308,-500.0,0.00023178,9]
[334164972,1722805882318,-2166.73,0.00023178,9]
[334164973,1722805882327,-1008.24,0.00023178,9]
[334164974,1722805882337,-875.6,0.00023178,9]
[334164975,1722805882346,-500.0,0.00023178,9]
[334164976,1722805882355,-2110.33,0.00023178,9]
[334164977,1722805882365,-500.0,0.00023178,9]
[334164978,1722805882378,-500.0,0.00023178,9]
[334164979,1722805882388,-500.0,0.00023178,9]
[334164980,1722805882398,-1837.17,0.00023178,9]
[334164981,1722805882407,-500.0,0.00023178,9]
[334164982,1722805882417,-500.0,0.00023178,9]
[334164983,1722805882427,-869.18,0.00023178,9]
[334164984,1722805882436,-3297.96,0.00023178,9]
[334164985,1722805882446,-500.0,0.00023178,9]
[334164986,1722805882456,-500.0,0.00023178,9]
[334164987,1722805882465,-500.0,0.00023178,9]
[334164988,1722805882475,-500.0,0.00023178,9]
[334164989,1722805882484,-500.0,0.00023178,9]
[334164990,1722805882494,-500.0,0.00023178,9]
[334164991,1722805882503,-500.0,0.00023178,9]
[334164992,1722805882513,-500.0,0.00023178,9]
[334164993,1722805882522,-1974.83,0.00023178,9]
[334164994,1722805882531,-1490.37,0.00023178,9]
[334164995,1722805882541,-500.0,0.00023178,9]
[334164996,1722805882550,-500.0,0.00023178,9]
[334164997,1722805882559,-500.0,0.00023178,9]
[334164998,1722805882572,-500.0,0.00023178,9]
[334164999,1722805882582,-1163.87,0.00023178,9]
[334165000,1722805882592,-838.33,0.00023178,9]
[334165001,1722805882602,-529.16,0.00023178,9]
[334165002,1722805882611,-974.84,0.00023178,9]
[334165003,1722805882625,-15920.46,0.00023178,9]
[334165004,1722805882640,-4240.5,0.00023178,9]
[334165005,1722805882653,-5400.18,0.00023178,9]
[334165006,1722805882663,-500.0,0.00023178,9]
[334165007,1722805882673,-500.0,0.00023178,9]
[334165008,1722805882683,-590.46,0.00023178,9]
[334165009,1722805882692,-287.13514481,0.00023178,9]
[334165010,1722805882702,-500.0,0.00023178,9]
[334165011,1722805882712,-500.0,0.00023178,9]
[334165012,1722805882721,-3908.25,0.00023178,9]
[334165013,1722805882731,-500.0,0.00023178,9]
[334165014,1722805882741,-500.0,0.00023178,9]
[334165015,1722805882750,-500.0,0.00023178,2]
[334165016,1722805882759,-500.0,0.00023178,9]
[334165017,1722805882769,-500.0,0.00023178,9]
[334165018,1722805882779,-529.53,0.00023178,9]
[334165019,1722805882789,-500.0,0.00023178,9]
[334165020,1722805882799,-500.0,0.00023178,9]
[334165021,1722805882809,-500.0,0.00023178,9]
[334165022,1722805882819,-500.0,0.00023178,9]
[334165023,1722805882828,-500.0,0.00023178,9]
[334165024,1722805882837,-813.32,0.00023178,9]
[334165025,1722805882847,-4692.4,0.00023178,9]
[334165026,1722805882857,-585.12,0.00023178,9]
[334165027,1722805882867,-500.0,0.00023178,9]
[334165028,1722805882886,-500.0,0.00023178,9]
[334165029,1722805882896,-500.0,0.00023178,9]
[334165030,1722805882906,-500.0,0.00023178,9]
[334165031,1722805882915,-502.14728797,0.00023178,9]
[334165032,1722805882924,-2368.57,0.00023178,9]
[334165033,1722805882935,-1822.82,0.00023178,9]
[334165034,1722805882944,-500.0,0.00023178,9]
[334165035,1722805882954,-1306.56,0.00023178,9]
[334165036,1722805882964,-1782.24,0.00023178,9]
[334165037,1722805882973,-500.0,0.00023178,9]
[334165038,1722805882983,-532.36,0.00023178,9]
[334165039,1722805882993,-584.45,0.00023178,9]
[334165040,1722805883002,-3279.94,0.00023178,9]
[334165041,1722805883012,-1802.61,0.00023178,9]
[334165042,1722805883022,-1732.98,0.00023178,9]
[334165043,1722805883031,-570.5,0.00023178,9]
[334165044,1722805883041,-500.0,0.00023178,9]
[334165045,1722805883051,-1593.38,0.00023178,9]
[334165046,1722805883060,-500.0,0.00023178,9]
[334165047,1722805883070,-500.0,0.00023178,9]
[334165048,1722805883079,-704.27,0.00023178,9]
[334165049,1722805883089,-1389.19,0.00023178,9]
[334165050,1722805883104,-500.0,0.00023178,9]
[334165051,1722805883133,-1292.52,0.00023178,9]
[334165052,1722805883152,-749.6,0.00023178,9]
[334165053,1722805883173,-795.55,0.00023178,9]
[334165054,1722805883194,-500.0,0.00023178,9]
[334165055,1722805883213,-500.0,0.00023178,9]
[334165056,1722805883232,-500.0,0.00023178,9]
[334165057,1722805883249,-2234.5,0.00023178,9]
[334165058,1722805883266,-1619.53,0.00023178,9]
[334165059,1722805883286,-1978.79,0.00023178,9]
[334165060,1722805883306,-500.0,0.00023178,9]
[334165061,1722805883319,-500.0,0.00023178,9]
[334165062,1722805883336,-1324.25,0.00023178,9]
[334165063,1722805883352,-500.0,0.00023178,9]
[334165064,1722805883372,-4642.9,0.00023178,9]
[334165065,1722805883386,-500.0,0.00023178,9]
[334165066,1722805883404,-748.9,0.00023178,9]
[334165067,1722805883420,-500.0,0.00023178,9]
[334165068,1722805883435,-500.0,0.00023178,9]
[334165069,1722805883451,-1486.81,0.00023178,9]
[334165070,1722805883466,-500.0,0.00023178,9]
[334165071,1722805883481,-1192.94,0.00023178,9]
[334165072,1722805883495,-905.71,0.00023178,9]
[334165073,1722805883510,-1702.1,0.00023178,9]
[334165074,1722805883525,-551.73,0.00023178,9]
[334165075,1722805883540,-500.0,0.00023178,9]
[334165076,1722805883555,-1520.77,0.00023178,9]
[334165077,1722805883571,-500.0,0.00023178,9]
[334165078,1722805883588,-500.0,0.00023178,9]
[334165079,1722805883604,-500.0,0.00023178,9]
[334165080,1722805883621,-500.0,0.00023178,9]
[334165081,1722805883636,-500.0,0.00023178,9]
[334165082,1722805883652,-784.78,0.00023178,9]
[334165083,1722805883669,-500.0,0.00023178,9]
[334165084,1722805883684,-500.0,0.00023178,9]
[334165085,1722805883700,-1738.84,0.00023178,9]
[334165086,1722805883715,-500.0,0.00023178,9]
[334165087,1722805883731,-500.0,0.00023178,9]
[334165088,1722805883747,-1249.0,0.00023178,9]
[334165089,1722805883763,-500.0,0.00023178,9]
[334165090,1722805883779,-648.05,0.00023178,9]
[334165091,1722805883794,-1912.77,0.00023178,9]
[334165092,1722805883810,-512.44,0.00023178,9]
[334165093,1722805883824,-500.0,0.00023178,9]
[334165094,1722805883839,-700.51,0.00023178,9]
[334165095,1722805883854,-2333.13,0.00023178,9]
[334165096,1722805883873,-1336.78,0.00023178,9]
[334165097,1722805883889,-500.0,0.00023178,9]
[334165098,1722805883905,-2730.38,0.00023178,9]
[334165099,1722805883920,-500.0,0.00023178,9]
[334165100,1722805883935,-914.73,0.00023178,9]
[334165101,1722805883950,-500.0,0.00023178,9]
[334165102,1722805883966,-500.0,0.00023178,9]
[334165103,1722805883983,-500.0,0.00023178,9]
[334165104,1722805884000,-500.0,0.00023178,9]
[334165105,1722805884015,-500.0,0.00023178,9]
[334165106,1722805884031,-581.05,0.00023178,9]
[334165107,1722805884047,-2039.74,0.00023178,9]
[334165108,1722805884062,-671.9,0.00023178,9]
[334165109,1722805884080,-1746.98,0.00023178,9]
[334165110,1722805884096,-1826.84,0.00023178,9]
[334165111,1722805884124,-500.0,0.00023178,9]
[334165112,1722805884140,-1409.8,0.00023178,9]
[334165113,1722805884156,-617.4,0.00023178,9]
[334165114,1722805884173,-500.0,0.00023178,9]
[334165115,1722805884189,-6817.41,0.00023178,9]
[334165116,1722805884205,-500.0,0.00023178,9]
[334165117,1722805884221,-513.75,0.00023178,9]
[334165118,1722805884237,-1484.97,0.00023178,9]
[334165119,1722805884252,-500.0,0.00023178,9]
[334165120,1722805884267,-2027.34,0.00023178,9]
[334165121,1722805884283,-500.0,0.00023178,9]
[334165122,1722805884298,-500.0,0.00023178,9]
[334165123,1722805884314,-1047.24,0.00023178,9]
[334165124,1722805884329,-500.0,0.00023178,9]
[334165125,1722805884344,-1539.01,0.00023178,9]
[334165126,1722805884359,-500.0,0.00023178,9]
[334165127,1722805884375,-500.0,0.00023178,9]
[334165128,1722805884390,-538.57,0.00023178,9]
[334165129,1722805884405,-500.0,0.00023178,9]
[334165130,1722805884420,-2974.83,0.00023178,9]
[334165131,1722805884435,-1410.21,0.00023178,9]
[334165132,1722805884450,-2337.3,0.00023178,9]
[334165133,1722805884465,-981.74,0.00023178,9]
[334165134,1722805884479,-500.0,0.00023178,9]
[334165135,1722805884494,-1835.59,0.00023178,9]
[334165136,1722805884509,-500.0,0.00023178,9]
[334165137,1722805884524,-1335.18,0.00023178,9]
[334165138,1722805884539,-500.0,0.00023178,9]
[334165139,1722805884554,-500.0,0.00023178,9]
[334165140,1722805884569,-203.64709945,0.00023178,9]
[334165141,1722805884587,-277.51,0.00023178,9]
[334165142,1722805884601,-642.87,0.00023178,9]
[334165143,1722805884617,-1361.87,0.00023178,9]
[334165144,1722805884632,-500.0,0.00023178,9]
[334165145,1722805884648,-500.0,0.00023178,9]
[334165146,1722805884664,-500.0,0.00023178,9]
[334165147,1722805884680,-500.0,0.00023178,9]
[334165148,1722805884695,-6629.34,0.00023178,9]
[334165149,1722805884716,-1551.76,0.00023178,9]
[334165150,1722805884734,-1731.8,0.00023178,9]
[334165151,1722805884751,-500.0,0.00023178,9]
[334165152,1722805884769,-589.81,0.00023178,9]
[334165153,1722805884784,-1218.11,0.00023178,9]
[334165154,1722805884800,-537.63697333,0.00023178,9]
[334165155,1722805884815,-500.0,0.00023178,9]
[334165156,1722805884831,-500.0,0.00023178,9]
[334165157,1722805884845,-1011.86,0.00023178,9]
[334165158,1722805884860,-500.0,0.00023178,9]
[334165159,1722805884877,-1603.94,0.00023178,9]
[334165160,1722805884892,-2430.72,0.00023178,9]
[334165161,1722805884906,-780.91,0.00023178,9]
[334165162,1722805884921,-500.0,0.00023178,9]
[334165163,1722805884937,-546.2,0.00023178,9]
[334165164,1722805884951,-500.0,0.00023178,9]
[334165165,1722805884967,-1366.44,0.00023178,9]
[334165166,1722805884982,-2362.81,0.00023178,9]
[334165167,1722805884997,-500.0,0.00023178,9]
[334165168,1722805885012,-500.0,0.00023178,9]
[334165169,1722805885027,-2577.06,0.00023178,9]
[334165170,1722805885042,-840.74,0.00023178,9]
[334165171,1722805885057,-1386.14,0.00023178,9]
[334165172,1722805885073,-1616.46,0.00023178,9]
[334165173,1722805885088,-500.0,0.00023178,9]
[334165174,1722805885103,-500.0,0.00023178,9]
[334165175,1722805885119,-500.0,0.00023178,9]
[334165176,1722805885135,-3538.17,0.00023178,9]
[334165177,1722805885151,-500.0,0.00023178,9]
[334165178,1722805885167,-1548.4,0.00023178,9]
[334165179,1722805885184,-500.0,0.00023178,9]
[334165180,1722805885512,-1033.75,0.00023178,9]
[334165181,1722805885547,-500.0,0.00023178,9]
[334165182,1722805885557,-500.0,0.00023178,9]
[334165183,1722805885568,-1092.49,0.00023178,9]
[334165184,1722805885579,-9086.99,0.00023178,9]
[334165185,1722805885592,-1168.4,0.00023178,9]
[334165186,1722805885602,-1765.93,0.00023178,9]
[334165187,1722805885612,-419.7959989,0.00023178,9]
[334165188,1722805885625,-1340.4,0.00023178,9]
[334165189,1722805885637,-1384.98,0.00023178,9]
[334165190,1722805885648,-1030.71,0.00023178,9]
[334165191,1722805885661,-500.0,0.00023178,9]
[334165192,1722805885673,-500.0,0.00023178,9]
[334165193,1722805885684,-500.0,0.00023178,9]
[334165194,1722805885694,-1452.74,0.00023178,9]
[334165195,1722805885704,-500.0,0.00023178,9]
[334165196,1722805885714,-1306.99,0.00023178,9]
[334165197,1722805885724,-500.0,0.00023178,9]
[334165198,1722805885733,-500.0,0.00023178,9]
[334165199,1722805885743,-937.33,0.00023178,9]
[334165200,1722805885754,-1739.37,0.00023178,9]
[334165201,1722805885764,-2369.95,0.00023178,9]
[334165202,1722805885774,-1656.69,0.00023178,9]
[334165203,1722805885784,-2376.7,0.00023178,9]
[334165204,1722805885794,-500.0,0.00023178,9]
[334165205,1722805885804,-500.0,0.00023178,9]
[334165206,1722805885814,-2350.99,0.00023178,9]
[334165207,1722805885824,-500.0,0.00023178,9]
[334165208,1722805885834,-500.0,0.00023178,9]
[334165209,1722805885843,-1993.53,0.00023178,9]
[334165210,1722805885853,-500.0,0.00023178,9]
[334165211,1722805885863,-500.0,0.00023178,9]
[334165212,1722805885878,-758.04,0.00023178,9]
[334165213,1722805885888,-500.0,0.00023178,9]
[334165214,1722805885898,-500.0,0.00023178,9]
[334165215,1722805885909,-500.0,0.00023178,9]
[334165216,1722805885921,-1187.35,0.00023178,9]
[334165217,1722805885932,-500.0,0.00023178,9]
[334165218,1722805885941,-500.0,0.00023178,9]
[334165219,1722805885951,-1551.59,0.00023178,9]
[334165220,1722805885961,-1636.69,0.00023178,9]
[334165221,1722805885970,-1247.64,0.00023178,9]
[334165222,1722805885979,-857.36,0.00023178,9]
[334165223,1722805885989,-500.0,0.00023178,9]
[334165224,1722805885999,-500.0,0.00023178,9]
[334165225,1722805886009,-777.93,0.00023178,9]
[334165226,1722805886019,-531.47,0.00023178,9]
[334165227,1722805886029,-500.0,0.00023178,9]
[334165228,1722805886038,-1062.23,0.00023178,9]
[334165229,1722805886048,-500.0,0.00023178,9]
[334165230,1722805886057,-500.0,0.00023178,9]
[334165231,1722805886066,-1536.84,0.00023178,9]
[334165232,1722805886076,-5130.9,0.00023178,9]
[334165233,1722805886086,-500.0,0.00023178,9]
[334165234,1722805886096,-3352.44,0.00023178,9]
[334165235,1722805886107,-500.0,0.00023178,9]
[334165236,1722805886117,-1619.45,0.00023178,9]
[334165237,1722805886138,-500.0,0.00023178,9]
[334165238,1722805886149,-500.0,0.00023178,9]
[334165239,1722805886161,-500.0,0.00023178,9]
[334165240,1722805886171,-500.0,0.00023178,9]
[334165241,1722805886182,-8524.14,0.00023178,9]
[334165242,1722805886192,-500.0,0.00023178,9]
[334165243,1722805886203,-500.0,0.00023178,9]
[334165244,1722805886213,-1025.18,0.00023178,9]
[334165245,1722805886223,-2009.05,0.00023178,9]
[334165246,1722805886233,-590.4,0.00023178,9]
[334165247,1722805886243,-7112.16,0.00023178,9]
[334165248,1722805886253,-500.0,0.00023178,9]
[334165249,1722805886263,-1553.57,0.00023178,9]
[334165250,1722805886273,-500.0,0.00023178,9]
[334165251,1722805886283,-500.0,0.00023178,9]
[334165252,1722805886293,-1722.79,0.00023178,9]
[334165253,1722805886303,-1056.97,0.00023178,9]
[334165254,1722805886312,-500.0,0.00023178,9]
[334165255,1722805886322,-3317.33,0.00023178,9]
[334165256,1722805886331,-500.0,0.00023178,9]
[334165257,1722805886341,-1901.52,0.00023178,9]
[334165258,1722805886349,-500.0,0.00023178,9]
[334165259,1722805886359,-500.0,0.00023178,9]
[334165260,1722805886369,-500.0,0.00023178,9]
[334165261,1722805886384,-2352.85,0.00023178,9]
[334165262,1722805886393,-9656.6,0.00023178,9]
[334165263,1722805886403,-849.98,0.00023178,9]
[334165264,1722805886413,-1993.32,0.00023178,9]
[334165265,1722805886423,-800.16,0.00023178,9]
[334165266,1722805886432,-500.0,0.00023178,9]
[334165267,1722805886442,-1408.64,0.00023178,9]
[334165268,1722805886451,-1339.66,0.00023178,9]
[334165269,1722805886460,-500.0,0.00023178,9]
[334165270,1722805886470,-865.36,0.00023178,9]